[Event "Titled Tuesday Blitz August 16 Late 2022"]
[White "Pakleza, Zbigniew"]
[Black "Martinez Alcantara, Jose Eduardo"]
[WhiteFideId "1119290"]
[BlackFideId "3805662"]
[WhiteElo "2411"]
[BlackElo "2703"]
[Result "1/2-1/2"]
[Round "04"]
[TimeControl "180+1"]
[Date "2022.08.16"]
[WhiteClock "0:00:02"]
[BlackClock "0:00:02"]

1. d4 {[%clk 0:03:00]}  Nf6 {[%clk 0:02:59]} 2. Nf3 {[%clk 0:03:00]}  e6 {[%clk 0:02:57]} 3. Bf4 {[%clk 0:03:00]}  b6 {[%clk 0:02:57]} 4. e3 {[%clk 0:03:00]}  Bb7 {[%clk 0:02:57]} 5. h3 {[%clk 0:03:00]}  Be7 {[%clk 0:02:58]} 6. Nbd2 {[%clk 0:03:00]}  O-O {[%clk 0:02:57]} 7. Bd3 {[%clk 0:03:01]}  c5 {[%clk 0:02:58]} 8. c3 {[%clk 0:03:01]}  cxd4 {[%clk 0:02:57]} 9. cxd4 {[%clk 0:03:01]}  d6 {[%clk 0:02:56]} 10. O-O {[%clk 0:03:01]}  a6 {[%clk 0:02:56]} 11. Qe2 {[%clk 0:02:57]}  Nc6 {[%clk 0:02:56]} 12. Rac1 {[%clk 0:02:56]}  Re8 {[%clk 0:02:52]} 13. a3 {[%clk 0:02:54]}  b5 {[%clk 0:02:50]} 14. Bg3 {[%clk 0:02:49]}  Qb6 {[%clk 0:02:49]} 15. Rc2 {[%clk 0:02:41]}  Rac8 {[%clk 0:02:44]} 16. Rfc1 {[%clk 0:02:41]}  Na7 {[%clk 0:02:44]} 17. e4 {[%clk 0:02:35]}  Rxc2 {[%clk 0:02:31]} 18. Rxc2 {[%clk 0:02:36]}  Nc6 {[%clk 0:02:28]} 19. Qe3 {[%clk 0:02:11]}  Rc8 {[%clk 0:01:30]} 20. Bh4 {[%clk 0:01:36]}  Na7 {[%clk 0:01:07]} 21. e5 {[%clk 0:01:11]}  dxe5 {[%clk 0:01:05]} 22. Rxc8+ {[%clk 0:00:52]}  Nxc8 {[%clk 0:01:06]} 23. Qxe5 {[%clk 0:00:46]}  h6 {[%clk 0:00:57]} 24. Bg3 {[%clk 0:00:38]}  Bd6 {[%clk 0:00:53]} 25. Qe3 {[%clk 0:00:30]}  Bxg3 {[%clk 0:00:53]} 26. fxg3 {[%clk 0:00:31]}  Ne7 {[%clk 0:00:53]} 27. Nb3 {[%clk 0:00:24]}  Qd6 {[%clk 0:00:46]} 28. Ne5 {[%clk 0:00:18]}  Bd5 {[%clk 0:00:41]} 29. Nc5 {[%clk 0:00:13]}  Qb6 {[%clk 0:00:24]} 30. b4 {[%clk 0:00:13]}  Nc6 {[%clk 0:00:20]} 31. Kh2 {[%clk 0:00:12]}  Nxe5 {[%clk 0:00:17]} 32. Qxe5 {[%clk 0:00:11]}  Ne8 {[%clk 0:00:09]} 33. Nd7 {[%clk 0:00:06]}  Qd8 {[%clk 0:00:07]} 34. Nc5 {[%clk 0:00:07]}  Nd6 {[%clk 0:00:06]} 35. Nxa6 {[%clk 0:00:06]}  Bc4 {[%clk 0:00:05]} 36. Bxc4 {[%clk 0:00:05]}  Nxc4 {[%clk 0:00:06]} 37. Qxb5 {[%clk 0:00:05]}  Qxd4 {[%clk 0:00:06]} 38. Nc5 {[%clk 0:00:05]}  Ne3 {[%clk 0:00:03]} 39. Qe8+ {[%clk 0:00:05]}  Kh7 {[%clk 0:00:03]} 40. Qxf7 {[%clk 0:00:06]}  Qd2 {[%clk 0:00:02]} 41. Qf3 {[%clk 0:00:05]}  Qe1 {[%clk 0:00:03]} 42. h4 {[%clk 0:00:04]}  Nf1+ {[%clk 0:00:03]} 43. Kh3 {[%clk 0:00:05]}  Ne3 {[%clk 0:00:03]} 44. Kh2 {[%clk 0:00:04]}  Nf1+ {[%clk 0:00:02]} 45. Kh3 {[%clk 0:00:05]}  Ne3 {[%clk 0:00:03]} 46. g4 {[%clk 0:00:04]}  Qh1+ {[%clk 0:00:01]} 47. Kg3 {[%clk 0:00:04]}  Qe1+ {[%clk 0:00:02]} 48. Qf2 {[%clk 0:00:03]}  Nf1+ {[%clk 0:00:02]} 49. Kf3 {[%clk 0:00:02]}  Nd2+ {[%clk 0:00:02]} 50. Kg3 {[%clk 0:00:02]}  Nf1+ {[%clk 0:00:02]} 51. Kf3 {[%clk 0:00:02]}  Nh2+ {[%clk 0:00:02]} 52. Kg3 {[%clk 0:00:02]}  Nf1+ {[%clk 0:00:02]} 1/2-1/2


[Site "https://www.chess.com"]

[Event "Titled Tuesday Blitz August 16 Late 2022"]
[White "Paravyan, David"]
[Black "Wieczorek, Oskar"]
[WhiteFideId "4194985"]
[BlackFideId "1133950"]
[WhiteElo "2569"]
[BlackElo "2302"]
[Result "1/2-1/2"]
[Round "04"]
[TimeControl "180+1"]
[Date "2022.08.16"]
[WhiteClock "0:00:59"]
[BlackClock "0:00:27"]

1. e4 {[%clk 0:03:00]}  c5 {[%clk 0:02:59]} 2. Nf3 {[%clk 0:03:01]}  e6 {[%clk 0:02:59]} 3. d4 {[%clk 0:03:01]}  cxd4 {[%clk 0:03:00]} 4. Nxd4 {[%clk 0:03:01]}  Nf6 {[%clk 0:03:01]} 5. Nc3 {[%clk 0:03:01]}  d6 {[%clk 0:03:01]} 6. g4 {[%clk 0:03:01]}  e5 {[%clk 0:03:02]} 7. Nf5 {[%clk 0:03:00]}  h5 {[%clk 0:03:02]} 8. Bg5 {[%clk 0:02:16]}  hxg4 {[%clk 0:02:59]} 9. Nd5 {[%clk 0:02:16]}  Bxf5 {[%clk 0:02:57]} 10. Bxf6 {[%clk 0:02:15]}  gxf6 {[%clk 0:02:57]} 11. exf5 {[%clk 0:02:16]}  Bh6 {[%clk 0:02:55]} 12. c3 {[%clk 0:02:15]}  Bg5 {[%clk 0:02:44]} 13. Bg2 {[%clk 0:02:02]}  Nd7 {[%clk 0:02:34]} 14. O-O {[%clk 0:01:30]}  Nb6 {[%clk 0:02:24]} 15. a4 {[%clk 0:01:22]}  Nxd5 {[%clk 0:02:17]} 16. Qxd5 {[%clk 0:01:23]}  Bf4 {[%clk 0:02:08]} 17. Rfd1 {[%clk 0:01:23]}  Bxh2+ {[%clk 0:01:27]} 18. Kf1 {[%clk 0:01:22]}  Rb8 {[%clk 0:01:27]} 19. Qxd6 {[%clk 0:01:22]}  Qxd6 {[%clk 0:01:28]} 20. Rxd6 {[%clk 0:01:22]}  Ke7 {[%clk 0:01:29]} 21. Rad1 {[%clk 0:01:23]}  Rhd8 {[%clk 0:01:22]} 22. Rxd8 {[%clk 0:01:22]}  Rxd8 {[%clk 0:01:22]} 23. Rxd8 {[%clk 0:01:22]}  Kxd8 {[%clk 0:01:23]} 24. Bxb7 {[%clk 0:01:22]}  Bf4 {[%clk 0:01:10]} 25. Ke2 {[%clk 0:01:15]}  Kc7 {[%clk 0:00:42]} 26. Bd5 {[%clk 0:01:14]}  a5 {[%clk 0:00:32]} 27. Kd3 {[%clk 0:01:13]}  Kd6 {[%clk 0:00:25]} 28. Bxf7 {[%clk 0:01:12]}  Kc5 {[%clk 0:00:23]} 29. Bh5 {[%clk 0:00:59]}  g3 {[%clk 0:00:24]} 30. fxg3 {[%clk 0:01:00]}  Bxg3 {[%clk 0:00:24]} 31. Bf3 {[%clk 0:01:00]}  Bf4 {[%clk 0:00:25]} 32. Be4 {[%clk 0:01:00]}  Bc1 {[%clk 0:00:25]} 33. Kc2 {[%clk 0:01:00]}  Be3 {[%clk 0:00:22]} 34. Kb3 {[%clk 0:01:00]}  Bd2 {[%clk 0:00:22]} 35. Ka3 {[%clk 0:01:00]}  Be1 {[%clk 0:00:22]} 36. Ka2 {[%clk 0:00:57]}  Bd2 {[%clk 0:00:22]} 37. Kb1 {[%clk 0:00:58]}  Be1 {[%clk 0:00:22]} 38. Kc2 {[%clk 0:00:59]}  Bh4 {[%clk 0:00:20]} 39. Kd3 {[%clk 0:00:59]}  Bg5 {[%clk 0:00:20]} 40. Bb7 {[%clk 0:00:59]}  Bc1 {[%clk 0:00:20]} 41. Kc2 {[%clk 0:00:59]}  Be3 {[%clk 0:00:20]} 42. Kd1 {[%clk 0:01:00]}  Bf4 {[%clk 0:00:20]} 43. Bc8 {[%clk 0:00:59]}  Bg5 {[%clk 0:00:20]} 44. Be6 {[%clk 0:01:00]}  Bf4 {[%clk 0:00:20]} 45. Bf7 {[%clk 0:00:59]}  Be3 {[%clk 0:00:20]} 46. b3 {[%clk 0:00:58]}  Bf2 {[%clk 0:00:19]} 47. Ke2 {[%clk 0:00:58]}  Bh4 {[%clk 0:00:19]} 48. Kf3 {[%clk 0:00:58]}  Be1 {[%clk 0:00:19]} 49. c4 {[%clk 0:00:54]}  Bd2 {[%clk 0:00:20]} 50. Ke4 {[%clk 0:00:52]}  Bg5 {[%clk 0:00:19]} 51. Be6 {[%clk 0:00:51]}  Bh4 {[%clk 0:00:20]} 52. Kd3 {[%clk 0:00:52]}  Bg5 {[%clk 0:00:20]} 53. Bd5 {[%clk 0:00:52]}  Bh4 {[%clk 0:00:20]} 54. Be6 {[%clk 0:00:53]}  Be1 {[%clk 0:00:20]} 55. Bg8 {[%clk 0:00:53]}  Bh4 {[%clk 0:00:21]} 56. Bf7 {[%clk 0:00:54]}  Be1 {[%clk 0:00:22]} 57. Bh5 {[%clk 0:00:54]}  Bh4 {[%clk 0:00:22]} 58. Bf3 {[%clk 0:00:54]}  Be1 {[%clk 0:00:23]} 59. Be4 {[%clk 0:00:54]}  Bh4 {[%clk 0:00:23]} 60. Bd5 {[%clk 0:00:54]}  Be1 {[%clk 0:00:24]} 61. Ba8 {[%clk 0:00:55]}  Bh4 {[%clk 0:00:24]} 62. Bg2 {[%clk 0:00:56]}  Bg5 {[%clk 0:00:24]} 63. Bf3 {[%clk 0:00:56]}  Bh4 {[%clk 0:00:25]} 64. Be4 {[%clk 0:00:57]}  Bg5 {[%clk 0:00:25]} 65. Bg2 {[%clk 0:00:57]}  Bh4 {[%clk 0:00:26]} 66. Be4 {[%clk 0:00:58]}  Bg5 {[%clk 0:00:26]} 67. Bg2 {[%clk 0:00:59]}  Bh4 {[%clk 0:00:27]} 68. Be4 {[%clk 0:00:59]} 1/2-1/2


[Site "https://www.chess.com"]

[Event "Titled Tuesday Blitz August 16 Late 2022"]
[White "Pham, Khoi"]
[Black "Harshal, Shahi"]
[WhiteFideId "1054988"]
[BlackFideId "5048257"]
[WhiteElo "2376"]
[BlackElo "2054"]
[Result "0-1"]
[Round "04"]
[TimeControl "180+1"]
[Date "2022.08.18"]
[WhiteClock "0:00:00"]
[BlackClock "0:00:00"]

1. d4 {[%clk 0:00:00]}  d5 {[%clk 0:00:00]} 2. c4 {[%clk 0:00:00]}  Nf6 {[%clk 0:00:00]} 3. cxd5 {[%clk 0:00:00]}  Nxd5 {[%clk 0:00:00]} 4. Nf3 {[%clk 0:00:00]}  g6 {[%clk 0:00:00]} 5. e4 {[%clk 0:00:00]}  Nb6 {[%clk 0:00:00]} 6. Nc3 {[%clk 0:00:00]}  Bg7 {[%clk 0:00:00]} 7. Be2 {[%clk 0:00:00]}  O-O {[%clk 0:00:00]} 8. O-O {[%clk 0:00:00]}  N8d7 {[%clk 0:00:00]} 9. Be3 {[%clk 0:00:00]}  c6 {[%clk 0:00:00]} 10. a4 {[%clk 0:00:00]}  a5 {[%clk 0:00:00]} 11. Qd2 {[%clk 0:00:00]}  Re8 {[%clk 0:00:00]} 12. Rfd1 {[%clk 0:00:00]}  Nf8 {[%clk 0:00:00]} 13. Rac1 {[%clk 0:00:00]}  Be6 {[%clk 0:00:00]} 14. Bh6 {[%clk 0:00:00]}  Bb3 {[%clk 0:00:00]} 15. Re1 {[%clk 0:00:00]}  Nxa4 {[%clk 0:00:00]} 16. Bxg7 {[%clk 0:00:00]}  Kxg7 {[%clk 0:00:00]} 17. Nxa4 {[%clk 0:00:00]}  Bxa4 {[%clk 0:00:00]} 18. d5 {[%clk 0:00:00]}  e5 {[%clk 0:00:00]} 19. Nxe5 {[%clk 0:00:00]}  Rxe5 {[%clk 0:00:00]} 20. Qd4 {[%clk 0:00:00]}  Qf6 {[%clk 0:00:00]} 21. Qxa4 {[%clk 0:00:00]}  cxd5 {[%clk 0:00:00]} 22. exd5 {[%clk 0:00:00]}  Rae8 {[%clk 0:00:00]} 23. Qb5 {[%clk 0:00:00]}  Qg5 {[%clk 0:00:00]} 24. Kf1 {[%clk 0:00:00]}  Rxe2 {[%clk 0:00:00]} 25. Qxe2 {[%clk 0:00:00]}  Rxe2 {[%clk 0:00:00]} 26. Kxe2 {[%clk 0:00:00]}  Qxd5 {[%clk 0:00:00]} 27. Kf1 {[%clk 0:00:00]}  Ne6 {[%clk 0:00:00]} 28. Red1 {[%clk 0:00:00]}  Qb5+ {[%clk 0:00:00]} 29. Kg1 {[%clk 0:00:00]}  Nf4 {[%clk 0:00:00]} 30. Rc7 {[%clk 0:00:00]}  Qe5 {[%clk 0:00:00]} 31. Rxb7 {[%clk 0:00:00]}  Qe4 {[%clk 0:00:00]} 0-1


[Site "https://www.chess.com"]

[Event "Titled Tuesday Blitz August 16 Late 2022"]
[White "Postnikov, Daniil"]
[Black "Martinez, Shawn"]
[WhiteFideId "4166329"]
[BlackFideId "2039770"]
[WhiteElo "2261"]
[BlackElo "2174"]
[Result "0-1"]
[Round "04"]
[TimeControl "180+1"]
[Date "2022.08.18"]
[WhiteClock "0:00:00"]
[BlackClock "0:00:00"]

1. e4 {[%clk 0:00:00]}  c5 {[%clk 0:00:00]} 2. a3 {[%clk 0:00:00]}  e6 {[%clk 0:00:00]} 3. b4 {[%clk 0:00:00]}  b6 {[%clk 0:00:00]} 4. d4 {[%clk 0:00:00]}  cxd4 {[%clk 0:00:00]} 5. Qxd4 {[%clk 0:00:00]}  Bb7 {[%clk 0:00:00]} 6. Bb2 {[%clk 0:00:00]}  Nc6 {[%clk 0:00:00]} 7. Qe3 {[%clk 0:00:00]}  d6 {[%clk 0:00:00]} 8. Nd2 {[%clk 0:00:00]}  Nf6 {[%clk 0:00:00]} 9. Be2 {[%clk 0:00:00]}  Be7 {[%clk 0:00:00]} 10. g4 {[%clk 0:00:00]}  O-O {[%clk 0:00:00]} 11. h4 {[%clk 0:00:00]}  d5 {[%clk 0:00:00]} 12. g5 {[%clk 0:00:00]}  Nxe4 {[%clk 0:00:00]} 13. Nxe4 {[%clk 0:00:00]}  dxe4 {[%clk 0:00:00]} 14. Rd1 {[%clk 0:00:00]}  Qc7 {[%clk 0:00:00]} 15. Qc3 {[%clk 0:00:00]}  f6 {[%clk 0:00:00]} 16. b5 {[%clk 0:00:00]}  Bc5 {[%clk 0:00:00]} 17. bxc6 {[%clk 0:00:00]}  Bxc6 {[%clk 0:00:00]} 18. g6 {[%clk 0:00:00]}  e3 {[%clk 0:00:00]} 19. Nf3 {[%clk 0:00:00]}  exf2+ {[%clk 0:00:00]} 20. Kf1 {[%clk 0:00:00]}  Qg3 {[%clk 0:00:00]} 21. Qb3 {[%clk 0:00:00]}  Rae8 {[%clk 0:00:00]} 22. h5 {[%clk 0:00:00]}  a5 {[%clk 0:00:00]} 23. gxh7+ {[%clk 0:00:00]}  Kh8 {[%clk 0:00:00]} 24. Bd4 {[%clk 0:00:00]}  a4 {[%clk 0:00:00]} 25. Qe3 {[%clk 0:00:00]}  Bxd4 {[%clk 0:00:00]} 26. Rxd4 {[%clk 0:00:00]}  e5 {[%clk 0:00:00]} 27. Rd6 {[%clk 0:00:00]}  Rc8 {[%clk 0:00:00]} 28. Qxf2 {[%clk 0:00:00]}  Qf4 {[%clk 0:00:00]} 29. Rh4 {[%clk 0:00:00]}  Qc1+ {[%clk 0:00:00]} 30. Rd1 {[%clk 0:00:00]}  Qxc2 {[%clk 0:00:00]} 31. Rc4 {[%clk 0:00:00]}  Qb3 {[%clk 0:00:00]} 32. Rdc1 {[%clk 0:00:00]}  Bb7 {[%clk 0:00:00]} 33. h6 {[%clk 0:00:00]}  Qxa3 {[%clk 0:00:00]} 34. hxg7+ {[%clk 0:00:00]}  Kxg7 {[%clk 0:00:00]} 35. Qg3+ {[%clk 0:00:00]}  Kxh7 {[%clk 0:00:00]} 36. Ng5+ {[%clk 0:00:00]}  fxg5+ {[%clk 0:00:00]} 37. Qf2 {[%clk 0:00:00]}  Rxf2+ {[%clk 0:00:00]} 38. Kxf2 {[%clk 0:00:00]}  Rxc4 {[%clk 0:00:00]} 39. Rxc4 {[%clk 0:00:00]}  Qd6 {[%clk 0:00:00]} 40. Ke3 {[%clk 0:00:00]}  Ba6 {[%clk 0:00:00]} 41. Rxa4 {[%clk 0:00:00]}  Bxe2 {[%clk 0:00:00]} 42. Kxe2 {[%clk 0:00:00]}  Qc6 {[%clk 0:00:00]} 0-1


[Site "https://www.chess.com"]

[Event "Titled Tuesday Blitz August 16 Late 2022"]
[White "Prieto Aranguren, Alain"]
[Black "Burke, Paul"]
[WhiteFideId "2268906"]
[BlackFideId "2605767"]
[WhiteElo "2224"]
[BlackElo "1918"]
[Result "1-0"]
[Round "04"]
[TimeControl "180+1"]
[Date "2022.08.18"]
[WhiteClock "0:00:00"]
[BlackClock "0:00:00"]

1. d4 {[%clk 0:00:00]}  c5 {[%clk 0:00:00]} 2. d5 {[%clk 0:00:00]}  Nf6 {[%clk 0:00:00]} 3. Nc3 {[%clk 0:00:00]}  d6 {[%clk 0:00:00]} 4. e4 {[%clk 0:00:00]}  e6 {[%clk 0:00:00]} 5. Bb5+ {[%clk 0:00:00]}  Bd7 {[%clk 0:00:00]} 6. dxe6 {[%clk 0:00:00]}  fxe6 {[%clk 0:00:00]} 7. e5 {[%clk 0:00:00]}  dxe5 {[%clk 0:00:00]} 8. Bc4 {[%clk 0:00:00]}  Be7 {[%clk 0:00:00]} 9. Nf3 {[%clk 0:00:00]}  O-O {[%clk 0:00:00]} 10. Nxe5 {[%clk 0:00:00]}  Kh8 {[%clk 0:00:00]} 11. O-O {[%clk 0:00:00]}  a6 {[%clk 0:00:00]} 12. Nxd7 {[%clk 0:00:00]}  Nbxd7 {[%clk 0:00:00]} 13. Bxe6 {[%clk 0:00:00]}  b5 {[%clk 0:00:00]} 14. Nd5 {[%clk 0:00:00]}  Nxd5 {[%clk 0:00:00]} 15. Bxd5 {[%clk 0:00:00]}  Rb8 {[%clk 0:00:00]} 16. a4 {[%clk 0:00:00]}  Nb6 {[%clk 0:00:00]} 17. Bf3 {[%clk 0:00:00]}  Qc7 {[%clk 0:00:00]} 18. axb5 {[%clk 0:00:00]}  axb5 {[%clk 0:00:00]} 19. Qe2 {[%clk 0:00:00]}  Bd6 {[%clk 0:00:00]} 20. h3 {[%clk 0:00:00]}  Nc4 {[%clk 0:00:00]} 21. Ra6 {[%clk 0:00:00]}  Ne5 {[%clk 0:00:00]} 22. Bd5 {[%clk 0:00:00]}  c4 {[%clk 0:00:00]} 23. Be3 {[%clk 0:00:00]}  b4 {[%clk 0:00:00]} 24. Ra7 {[%clk 0:00:00]}  Qd8 {[%clk 0:00:00]} 25. Qh5 {[%clk 0:00:00]}  Qf6 {[%clk 0:00:00]} 26. Rfa1 {[%clk 0:00:00]}  Ng6 {[%clk 0:00:00]} 27. R1a6 {[%clk 0:00:00]}  Nf4 {[%clk 0:00:00]} 28. Qf3 {[%clk 0:00:00]}  Nxd5 {[%clk 0:00:00]} 29. Qxd5 {[%clk 0:00:00]}  Rbd8 {[%clk 0:00:00]} 30. Bc5 {[%clk 0:00:00]} 1-0


[Site "https://www.chess.com"]

[Event "Titled Tuesday Blitz August 16 Late 2022"]
[White "Prydun, Andriy"]
[Black "Yaksin, Oleg"]
[WhiteFideId "14145898"]
[BlackFideId "24105880"]
[WhiteElo "2163"]
[BlackElo "2256"]
[Result "1-0"]
[Round "04"]
[TimeControl "180+1"]
[Date "2022.08.18"]
[WhiteClock "0:00:00"]
[BlackClock "0:00:00"]

1. e4 {[%clk 0:00:00]}  e6 {[%clk 0:00:00]} 2. d3 {[%clk 0:00:00]}  d5 {[%clk 0:00:00]} 3. Nd2 {[%clk 0:00:00]}  Nc6 {[%clk 0:00:00]} 4. Ngf3 {[%clk 0:00:00]}  Nf6 {[%clk 0:00:00]} 5. Qe2 {[%clk 0:00:00]}  dxe4 {[%clk 0:00:00]} 6. Nxe4 {[%clk 0:00:00]}  Be7 {[%clk 0:00:00]} 7. Bf4 {[%clk 0:00:00]}  O-O {[%clk 0:00:00]} 8. g3 {[%clk 0:00:00]}  Re8 {[%clk 0:00:00]} 9. Bg2 {[%clk 0:00:00]}  e5 {[%clk 0:00:00]} 10. Nxe5 {[%clk 0:00:00]}  Nxe5 {[%clk 0:00:00]} 11. Bxe5 {[%clk 0:00:00]}  Ng4 {[%clk 0:00:00]} 12. Bc3 {[%clk 0:00:00]}  f5 {[%clk 0:00:00]} 13. Rd1 {[%clk 0:00:00]}  Bc5 {[%clk 0:00:00]} 14. O-O {[%clk 0:00:00]}  fxe4 {[%clk 0:00:00]} 15. dxe4 {[%clk 0:00:00]}  Qe7 {[%clk 0:00:00]} 16. h3 {[%clk 0:00:00]}  Nh6 {[%clk 0:00:00]} 17. Kh2 {[%clk 0:00:00]}  Be6 {[%clk 0:00:00]} 18. f4 {[%clk 0:00:00]}  Qf7 {[%clk 0:00:00]} 19. b3 {[%clk 0:00:00]}  Rad8 {[%clk 0:00:00]} 20. g4 {[%clk 0:00:00]}  Rxd1 {[%clk 0:00:00]} 21. Qxd1 {[%clk 0:00:00]}  Be3 {[%clk 0:00:00]} 22. f5 {[%clk 0:00:00]}  Bc8 {[%clk 0:00:00]} 23. e5 {[%clk 0:00:00]}  c6 {[%clk 0:00:00]} 24. e6 {[%clk 0:00:00]}  Qc7+ {[%clk 0:00:00]} 25. Kh1 {[%clk 0:00:00]}  Bg5 {[%clk 0:00:00]} 26. Bd2 {[%clk 0:00:00]}  Qe7 {[%clk 0:00:00]} 27. Qc1 {[%clk 0:00:00]}  Bxd2 {[%clk 0:00:00]} 28. Qxd2 {[%clk 0:00:00]}  Qh4 {[%clk 0:00:00]} 29. Qf4 {[%clk 0:00:00]}  Rf8 {[%clk 0:00:00]} 30. a4 {[%clk 0:00:00]}  Qe7 {[%clk 0:00:00]} 31. Qe5 {[%clk 0:00:00]}  Kh8 {[%clk 0:00:00]} 32. a5 {[%clk 0:00:00]}  Nf7 {[%clk 0:00:00]} 33. Qd4 {[%clk 0:00:00]}  Nd6 {[%clk 0:00:00]} 34. c4 {[%clk 0:00:00]}  b6 {[%clk 0:00:00]} 35. b4 {[%clk 0:00:00]}  bxa5 {[%clk 0:00:00]} 36. bxa5 {[%clk 0:00:00]}  Nb7 {[%clk 0:00:00]} 37. Bxc6 {[%clk 0:00:00]}  Nxa5 {[%clk 0:00:00]} 38. Bd5 {[%clk 0:00:00]}  Nb3 {[%clk 0:00:00]} 39. Qc3 {[%clk 0:00:00]}  Nc5 {[%clk 0:00:00]} 40. Qe3 {[%clk 0:00:00]}  Bb7 {[%clk 0:00:00]} 41. g5 {[%clk 0:00:00]}  Bxd5+ {[%clk 0:00:00]} 42. cxd5 {[%clk 0:00:00]}  Nb7 {[%clk 0:00:00]} 43. Qe5 {[%clk 0:00:00]}  Nd6 {[%clk 0:00:00]} 44. f6 {[%clk 0:00:00]}  Nc4 {[%clk 0:00:00]} 45. fxe7 {[%clk 0:00:00]}  Rxf1+ {[%clk 0:00:00]} 46. Kg2 {[%clk 0:00:00]} 1-0


[Site "https://www.chess.com"]

[Event "Titled Tuesday Blitz August 16 Late 2022"]
[White "Putnam, Liam"]
[Black "Meduri, Aakaash"]
[WhiteFideId "30938279"]
[BlackFideId "2032252"]
[WhiteElo "2035"]
[BlackElo "2113"]
[Result "1-0"]
[Round "04"]
[TimeControl "180+1"]
[Date "2022.08.18"]
[WhiteClock "0:00:00"]
[BlackClock "0:00:00"]

1. Nf3 {[%clk 0:00:00]}  d5 {[%clk 0:00:00]} 2. b3 {[%clk 0:00:00]}  Nf6 {[%clk 0:00:00]} 3. Bb2 {[%clk 0:00:00]}  c5 {[%clk 0:00:00]} 4. e3 {[%clk 0:00:00]}  g6 {[%clk 0:00:00]} 5. c4 {[%clk 0:00:00]}  e6 {[%clk 0:00:00]} 6. cxd5 {[%clk 0:00:00]}  exd5 {[%clk 0:00:00]} 7. d4 {[%clk 0:00:00]}  cxd4 {[%clk 0:00:00]} 8. Qxd4 {[%clk 0:00:00]}  Bg7 {[%clk 0:00:00]} 9. Qe5+ {[%clk 0:00:00]}  Be6 {[%clk 0:00:00]} 10. Bb5+ {[%clk 0:00:00]}  Nbd7 {[%clk 0:00:00]} 11. Nd4 {[%clk 0:00:00]}  Qa5+ {[%clk 0:00:00]} 12. Bc3 {[%clk 0:00:00]}  Qxb5 {[%clk 0:00:00]} 13. Nxb5 {[%clk 0:00:00]}  Nxe5 {[%clk 0:00:00]} 14. Bxe5 {[%clk 0:00:00]}  O-O {[%clk 0:00:00]} 15. N1c3 {[%clk 0:00:00]}  a6 {[%clk 0:00:00]} 16. Nd4 {[%clk 0:00:00]}  Rfc8 {[%clk 0:00:00]} 17. Rc1 {[%clk 0:00:00]}  Ne4 {[%clk 0:00:00]} 18. Bxg7 {[%clk 0:00:00]}  Rxc3 {[%clk 0:00:00]} 19. Rxc3 {[%clk 0:00:00]}  Nxc3 {[%clk 0:00:00]} 20. Nxe6 {[%clk 0:00:00]}  Nxa2 {[%clk 0:00:00]} 21. Nc7 {[%clk 0:00:00]}  Rc8 {[%clk 0:00:00]} 22. Be5 {[%clk 0:00:00]}  f6 {[%clk 0:00:00]} 23. Bg3 {[%clk 0:00:00]}  Kf7 {[%clk 0:00:00]} 24. Kd2 {[%clk 0:00:00]}  Nb4 {[%clk 0:00:00]} 25. Rc1 {[%clk 0:00:00]}  h5 {[%clk 0:00:00]} 26. Bd6 {[%clk 0:00:00]}  Nc6 {[%clk 0:00:00]} 27. Bg3 {[%clk 0:00:00]}  Rd8 {[%clk 0:00:00]} 28. Nxa6 {[%clk 0:00:00]}  g5 {[%clk 0:00:00]} 29. h3 {[%clk 0:00:00]}  d4 {[%clk 0:00:00]} 30. e4 {[%clk 0:00:00]}  Na5 {[%clk 0:00:00]} 31. Nc5 {[%clk 0:00:00]}  b6 {[%clk 0:00:00]} 32. b4 {[%clk 0:00:00]}  bxc5 {[%clk 0:00:00]} 33. bxa5 {[%clk 0:00:00]}  Rc8 {[%clk 0:00:00]} 34. Kd3 {[%clk 0:00:00]}  Ke6 {[%clk 0:00:00]} 35. f4 {[%clk 0:00:00]}  h4 {[%clk 0:00:00]} 36. f5+ {[%clk 0:00:00]}  Kd7 {[%clk 0:00:00]} 37. Bf2 {[%clk 0:00:00]}  Kc6 {[%clk 0:00:00]} 38. Bxd4 {[%clk 0:00:00]}  Rd8 {[%clk 0:00:00]} 39. Rxc5+ {[%clk 0:00:00]}  Kd6 {[%clk 0:00:00]} 40. Rd5+ {[%clk 0:00:00]}  Ke7 {[%clk 0:00:00]} 41. Rxd8 {[%clk 0:00:00]}  Kf7 {[%clk 0:00:00]} 42. Rd7+ {[%clk 0:00:00]}  Kg8 {[%clk 0:00:00]} 43. Rb7 {[%clk 0:00:00]}  g4 {[%clk 0:00:00]} 44. a6 {[%clk 0:00:00]}  g3 {[%clk 0:00:00]} 45. a7 {[%clk 0:00:00]}  Kf8 {[%clk 0:00:00]} 46. a8=R# {[%clk 0:00:00]} 1-0


[Site "https://www.chess.com"]